[Event "Titled Tuesday Blitz December 06 Late 2022"]
[White "Suder, Jakub"]
[Black "Papayan, Oleg"]
[WhiteFideId "1195310"]
[BlackFideId "4193911"]
[WhiteElo "2245"]
[BlackElo "2153"]
[Result "1-0"]
[Round "03"]
[TimeControl "180+1"]
[Date "2022.12.07"]
[WhiteClock "0:02:05"]
[BlackClock "0:00:56"]

1. d4 {[%clk 0:03:00]}  Nf6 {[%clk 0:02:51]} 2. c4 {[%clk 0:03:00]}  e6 {[%clk 0:02:50]} 3. Nc3 {[%clk 0:03:01]}  Bb4 {[%clk 0:02:51]} 4. f3 {[%clk 0:03:01]}  c5 {[%clk 0:02:50]} 5. d5 {[%clk 0:03:01]}  b5 {[%clk 0:02:51]} 6. e4 {[%clk 0:03:00]}  bxc4 {[%clk 0:02:52]} 7. Bxc4 {[%clk 0:03:00]}  exd5 {[%clk 0:02:47]} 8. Bxd5 {[%clk 0:02:59]}  Nxd5 {[%clk 0:02:44]} 9. Qxd5 {[%clk 0:03:00]}  Nc6 {[%clk 0:02:44]} 10. Ne2 {[%clk 0:03:01]}  Qh4+ {[%clk 0:02:28]} 11. Ng3 {[%clk 0:02:56]}  O-O {[%clk 0:02:23]} 12. Bg5 {[%clk 0:02:53]}  Ne7 {[%clk 0:01:54]} 13. Bxh4 {[%clk 0:02:53]}  Nxd5 {[%clk 0:01:54]} 14. exd5 {[%clk 0:02:54]}  Re8+ {[%clk 0:01:54]} 15. Kf2 {[%clk 0:02:47]}  f6 {[%clk 0:01:53]} 16. Nge4 {[%clk 0:02:46]}  Bb7 {[%clk 0:01:48]} 17. Rad1 {[%clk 0:02:43]}  c4 {[%clk 0:01:48]} 18. Rhe1 {[%clk 0:02:37]}  Kf7 {[%clk 0:01:47]} 19. a3 {[%clk 0:02:36]}  Bf8 {[%clk 0:01:42]} 20. Bg3 {[%clk 0:02:36]}  a5 {[%clk 0:01:21]} 21. Nd6+ {[%clk 0:02:35]}  Bxd6 {[%clk 0:01:21]} 22. Bxd6 {[%clk 0:02:35]}  Ra6 {[%clk 0:01:21]} 23. Rxe8 {[%clk 0:02:34]}  Kxe8 {[%clk 0:01:22]} 24. Re1+ {[%clk 0:02:34]}  Kd8 {[%clk 0:01:20]} 25. Nb5 {[%clk 0:02:27]}  Bxd5 {[%clk 0:01:14]} 26. Bc7+ {[%clk 0:02:17]}  Kc8 {[%clk 0:01:14]} 27. Re8+ {[%clk 0:02:16]}  Kb7 {[%clk 0:01:14]} 28. Bf4 {[%clk 0:02:14]}  Rb6 {[%clk 0:01:05]} 29. Rb8+ {[%clk 0:02:13]}  Kc6 {[%clk 0:01:05]} 30. Na7+ {[%clk 0:02:10]}  Kc5 {[%clk 0:01:04]} 31. Be3+ {[%clk 0:02:11]}  Kd6 {[%clk 0:00:55]} 32. Rxb6+ {[%clk 0:02:10]}  Ke5 {[%clk 0:00:55]} 33. g4 {[%clk 0:02:09]}  g5 {[%clk 0:00:56]} 34. h4 {[%clk 0:02:08]}  h6 {[%clk 0:00:56]} 35. hxg5 {[%clk 0:02:07]}  hxg5 {[%clk 0:00:57]} 36. Nb5 {[%clk 0:02:06]}  f5 {[%clk 0:00:56]} 37. Bd4+ {[%clk 0:02:06]}  Kf4 {[%clk 0:00:55]} 38. Nc3 {[%clk 0:02:05]}  fxg4 {[%clk 0:00:56]} 39. Nxd5+ {[%clk 0:02:05]}  Kf5 {[%clk 0:00:56]} 40. Ne3+ {[%clk 0:02:05]}  Kf4 {[%clk 0:00:56]} 41. Rf6# {[%clk 0:02:05]} 1-0


[Site "https://www.chess.com"]

[Event "Titled Tuesday Blitz December 06 Late 2022"]
[White "Szyszylo, Rafal"]
[Black "Aldokhin, Ivan"]
[WhiteFideId "1109626"]
[BlackFideId "24115720"]
[WhiteElo "1981"]
[BlackElo "2313"]
[Result "0-1"]
[Round "03"]
[TimeControl "180+1"]
[Date "2022.12.07"]
[WhiteClock "0:00:03"]
[BlackClock "0:00:05"]

1. e4 {[%clk 0:03:00]}  c5 {[%clk 0:02:59]} 2. Nf3 {[%clk 0:02:33]}  e6 {[%clk 0:02:59]} 3. d4 {[%clk 0:02:30]}  cxd4 {[%clk 0:02:59]} 4. Nxd4 {[%clk 0:02:31]}  a6 {[%clk 0:03:00]} 5. f4 {[%clk 0:02:29]}  d5 {[%clk 0:02:56]} 6. exd5 {[%clk 0:02:28]}  Qxd5 {[%clk 0:02:54]} 7. Be3 {[%clk 0:02:11]}  Nf6 {[%clk 0:02:51]} 8. Qf3 {[%clk 0:01:59]}  Bc5 {[%clk 0:02:43]} 9. c3 {[%clk 0:01:49]}  Bxd4 {[%clk 0:02:37]} 10. Qxd5 {[%clk 0:01:45]}  Nxd5 {[%clk 0:02:36]} 11. Bxd4 {[%clk 0:01:45]}  Nc6 {[%clk 0:02:31]} 12. g3 {[%clk 0:01:24]}  Nxd4 {[%clk 0:02:27]} 13. cxd4 {[%clk 0:01:25]}  Ke7 {[%clk 0:02:18]} 14. Nc3 {[%clk 0:01:23]}  Rd8 {[%clk 0:02:12]} 15. Kd2 {[%clk 0:01:08]}  Nb4 {[%clk 0:02:07]} 16. Ne2 {[%clk 0:01:05]}  e5 {[%clk 0:01:51]} 17. fxe5 {[%clk 0:01:04]}  Bg4 {[%clk 0:01:51]} 18. a3 {[%clk 0:00:57]}  Bxe2 {[%clk 0:01:46]} 19. Bxe2 {[%clk 0:00:52]}  Nc6 {[%clk 0:01:46]} 20. Rac1 {[%clk 0:00:21]}  Rxd4+ {[%clk 0:01:17]} 21. Ke3 {[%clk 0:00:22]}  Rd5 {[%clk 0:01:15]} 22. Bf3 {[%clk 0:00:21]}  Rxe5+ {[%clk 0:01:14]} 23. Kf4 {[%clk 0:00:19]}  Re6 {[%clk 0:01:03]} 24. Bxc6 {[%clk 0:00:19]}  bxc6 {[%clk 0:00:59]} 25. Rhe1 {[%clk 0:00:13]}  Rxe1 {[%clk 0:00:51]} 26. Rxe1+ {[%clk 0:00:14]}  Kd6 {[%clk 0:00:51]} 27. Rd1+ {[%clk 0:00:15]}  Kc7 {[%clk 0:00:52]} 28. Re1 {[%clk 0:00:14]}  Rd8 {[%clk 0:00:51]} 29. Re2 {[%clk 0:00:09]}  Rd4+ {[%clk 0:00:49]} 30. Ke5 {[%clk 0:00:08]}  Rd6 {[%clk 0:00:48]} 31. Kf4 {[%clk 0:00:08]}  Rf6+ {[%clk 0:00:47]} 32. Kg4 {[%clk 0:00:07]}  Kb6 {[%clk 0:00:42]} 33. h4 {[%clk 0:00:07]}  Kb5 {[%clk 0:00:40]} 34. b3 {[%clk 0:00:06]}  a5 {[%clk 0:00:39]} 35. Re5+ {[%clk 0:00:05]}  c5 {[%clk 0:00:35]} 36. Re4 {[%clk 0:00:04]}  Kc6 {[%clk 0:00:30]} 37. h5 {[%clk 0:00:02]}  h6 {[%clk 0:00:29]} 38. Kh4 {[%clk 0:00:02]}  Kd5 {[%clk 0:00:29]} 39. Ra4 {[%clk 0:00:02]}  Rb6 {[%clk 0:00:22]} 40. Rxa5 {[%clk 0:00:01]}  Rxb3 {[%clk 0:00:21]} 41. Ra7 {[%clk 0:00:02]}  Ke6 {[%clk 0:00:21]} 42. Ra6+ {[%clk 0:00:02]}  Kf5 {[%clk 0:00:16]} 43. g4+ {[%clk 0:00:02]}  Ke5 {[%clk 0:00:13]} 44. Ra5 {[%clk 0:00:01]}  Kd4 {[%clk 0:00:12]} 45. Ra7 {[%clk 0:00:02]}  Rf3 {[%clk 0:00:12]} 46. Rd7+ {[%clk 0:00:01]}  Kc3 {[%clk 0:00:11]} 47. a4 {[%clk 0:00:01]}  Kb4 {[%clk 0:00:11]} 48. Rc7 {[%clk 0:00:02]}  c4 {[%clk 0:00:05]} 49. a5 {[%clk 0:00:02]}  c3 {[%clk 0:00:05]} 50. a6 {[%clk 0:00:02]}  Rf6 {[%clk 0:00:06]} 51. a7 {[%clk 0:00:02]}  Ra6 {[%clk 0:00:05]} 52. Rxf7 {[%clk 0:00:03]}  c2 {[%clk 0:00:05]} 53. Rc7 {[%clk 0:00:03]}  Kb3 {[%clk 0:00:05]} 0-1


[Site "https://www.chess.com"]

[Event "Titled Tuesday Blitz December 06 Late 2022"]
[White "Timmermans, Mark"]
[Black "Paravyan, David"]
[WhiteFideId "1026399"]
[BlackFideId "4194985"]
[WhiteElo "2460"]
[BlackElo "2551"]
[Result "0-1"]
[Round "03"]
[TimeControl "180+1"]
[Date "2022.12.06"]
[WhiteClock "0:02:54"]
[BlackClock "0:02:39"]

1. b4 {[%clk 0:03:00]}  e5 {[%clk 0:02:58]} 2. Bb2 {[%clk 0:03:00]}  Bxb4 {[%clk 0:02:59]} 3. Bxe5 {[%clk 0:02:59]}  Nf6 {[%clk 0:02:59]} 4. Nc3 {[%clk 0:02:59]}  c6 {[%clk 0:02:56]} 5. a3 {[%clk 0:02:59]}  Ba5 {[%clk 0:02:50]} 6. e3 {[%clk 0:02:58]}  O-O {[%clk 0:02:48]} 7. Nf3 {[%clk 0:02:58]}  Re8 {[%clk 0:02:47]} 8. Be2 {[%clk 0:02:58]}  d5 {[%clk 0:02:45]} 9. O-O {[%clk 0:02:58]}  Bg4 {[%clk 0:02:41]} 10. Nb1 {[%clk 0:02:54]}  Bxf3 {[%clk 0:02:39]} 11. Bxf3 {[%clk 0:02:54]}  Rxe5 {[%clk 0:02:39]} 0-1


[Site "https://www.chess.com"]

[Event "Titled Tuesday Blitz December 06 Late 2022"]
[White "Tworuszka, Michal"]
[Black "Dias, Joao Batista"]
[WhiteFideId "1117858"]
[BlackFideId "2108240"]
[WhiteElo "2419"]
[BlackElo "1898"]
[Result "1-0"]
[Round "03"]
[TimeControl "180+1"]
[Date "2022.12.07"]
[WhiteClock "0:01:02"]
[BlackClock "0:01:36"]

1. e4 {[%clk 0:03:00]}  g6 {[%clk 0:02:59]} 2. d4 {[%clk 0:03:00]}  Bg7 {[%clk 0:02:59]} 3. c4 {[%clk 0:03:00]}  c5 {[%clk 0:02:59]} 4. d5 {[%clk 0:02:59]}  d6 {[%clk 0:02:59]} 5. Nc3 {[%clk 0:02:58]}  Nf6 {[%clk 0:02:58]} 6. f3 {[%clk 0:02:55]}  O-O {[%clk 0:02:58]} 7. Bg5 {[%clk 0:02:54]}  a6 {[%clk 0:02:58]} 8. a4 {[%clk 0:02:53]}  Nbd7 {[%clk 0:02:58]} 9. Nh3 {[%clk 0:02:52]}  h6 {[%clk 0:02:58]} 10. Be3 {[%clk 0:02:51]}  g5 {[%clk 0:02:53]} 11. Nf2 {[%clk 0:02:50]}  Ne5 {[%clk 0:02:52]} 12. Qd2 {[%clk 0:02:48]}  Ng6 {[%clk 0:02:51]} 13. g3 {[%clk 0:02:45]}  Rb8 {[%clk 0:02:48]} 14. h4 {[%clk 0:02:44]}  gxh4 {[%clk 0:02:42]} 15. gxh4 {[%clk 0:02:44]}  Kh7 {[%clk 0:02:42]} 16. Bd3 {[%clk 0:02:41]}  Ne5 {[%clk 0:02:41]} 17. Be2 {[%clk 0:02:38]}  Rg8 {[%clk 0:02:31]} 18. Rg1 {[%clk 0:02:29]}  Bd7 {[%clk 0:02:27]} 19. f4 {[%clk 0:02:26]}  Neg4 {[%clk 0:02:05]} 20. Nxg4 {[%clk 0:02:15]}  Nxg4 {[%clk 0:02:05]} 21. Bxg4 {[%clk 0:01:50]}  Bxg4 {[%clk 0:02:01]} 22. e5 {[%clk 0:01:12]}  h5 {[%clk 0:01:56]} 23. Qd3+ {[%clk 0:01:08]}  Kh8 {[%clk 0:01:54]} 24. Rxg4 {[%clk 0:01:05]}  hxg4 {[%clk 0:01:53]} 25. Qf5 {[%clk 0:01:05]}  Bh6 {[%clk 0:01:39]} 26. Qh5 {[%clk 0:01:03]}  Kh7 {[%clk 0:01:36]} 27. f5 {[%clk 0:01:02]} 1-0


[Site "https://www.chess.com"]

[Event "Titled Tuesday Blitz December 06 Late 2022"]
[White "Van Foreest, Lucas"]
[Black "Ronka, Erik"]
[WhiteFideId "1039792"]
[BlackFideId "505080"]
[WhiteElo "2509"]
[BlackElo "2264"]
[Result "1-0"]
[Round "03"]
[TimeControl "180+1"]
[Date "2022.12.07"]
[WhiteClock "0:01:15"]
[BlackClock "0:00:26"]

1. e4 {[%clk 0:03:00]}  c6 {[%clk 0:02:58]} 2. Qg4 {[%clk 0:03:00]}  d5 {[%clk 0:02:59]} 3. Qg3 {[%clk 0:02:54]}  d4 {[%clk 0:02:46]} 4. Bc4 {[%clk 0:02:52]}  Nf6 {[%clk 0:02:37]} 5. d3 {[%clk 0:02:51]}  e6 {[%clk 0:02:22]} 6. a3 {[%clk 0:02:48]}  Nbd7 {[%clk 0:02:18]} 7. f4 {[%clk 0:02:47]}  g6 {[%clk 0:02:16]} 8. Nf3 {[%clk 0:02:39]}  Bg7 {[%clk 0:02:13]} 9. O-O {[%clk 0:02:24]}  O-O {[%clk 0:02:11]} 10. Nbd2 {[%clk 0:02:21]}  b5 {[%clk 0:02:08]} 11. Ba2 {[%clk 0:02:18]}  c5 {[%clk 0:02:08]} 12. e5 {[%clk 0:02:17]}  Nd5 {[%clk 0:02:07]} 13. Ne4 {[%clk 0:02:17]}  Bb7 {[%clk 0:02:01]} 14. Nd6 {[%clk 0:02:15]}  Bc6 {[%clk 0:02:01]} 15. Ng5 {[%clk 0:02:13]}  Qe7 {[%clk 0:01:50]} 16. Bd2 {[%clk 0:02:11]}  N7b6 {[%clk 0:01:43]} 17. Rae1 {[%clk 0:02:10]}  Nc8 {[%clk 0:01:43]} 18. Nde4 {[%clk 0:02:04]}  h6 {[%clk 0:01:36]} 19. Nf3 {[%clk 0:02:04]}  a5 {[%clk 0:01:33]} 20. h4 {[%clk 0:02:01]}  h5 {[%clk 0:01:33]} 21. Nfg5 {[%clk 0:01:59]}  Ncb6 {[%clk 0:01:28]} 22. Qh3 {[%clk 0:01:55]}  Ne3 {[%clk 0:01:23]} 23. Bxe3 {[%clk 0:01:54]}  dxe3 {[%clk 0:01:24]} 24. Qxe3 {[%clk 0:01:54]}  Nd7 {[%clk 0:01:16]} 25. g4 {[%clk 0:01:49]}  hxg4 {[%clk 0:01:16]} 26. Qg3 {[%clk 0:01:47]}  Bd5 {[%clk 0:01:16]} 27. Bxd5 {[%clk 0:01:42]}  exd5 {[%clk 0:01:17]} 28. Nc3 {[%clk 0:01:42]}  Nb6 {[%clk 0:01:03]} 29. Qxg4 {[%clk 0:01:31]}  b4 {[%clk 0:01:01]} 30. axb4 {[%clk 0:01:30]}  axb4 {[%clk 0:01:02]} 31. Nb5 {[%clk 0:01:31]}  Qd7 {[%clk 0:00:37]} 32. f5 {[%clk 0:01:16]}  Qxb5 {[%clk 0:00:36]} 33. fxg6 {[%clk 0:01:16]}  fxg6 {[%clk 0:00:27]} 34. Qe6+ {[%clk 0:01:14]}  Kh8 {[%clk 0:00:26]} 35. Qxg6 {[%clk 0:01:15]} 1-0


[Site "https://www.chess.com"]

[Event "Titled Tuesday Blitz December 06 Late 2022"]
[White "Vykouk, Jan"]
[Black "Vargas, Mauricio"]
[WhiteFideId "349658"]
[BlackFideId "4404572"]
[WhiteElo "2378"]
[BlackElo "2025"]
[Result "1-0"]
[Round "03"]
[TimeControl "180+1"]
[Date "2022.12.07"]
[WhiteClock "0:02:24"]
[BlackClock "0:01:38"]

1. e4 {[%clk 0:02:58]}  c6 {[%clk 0:03:00]} 2. Nf3 {[%clk 0:02:55]}  d5 {[%clk 0:03:01]} 3. Nc3 {[%clk 0:02:56]}  dxe4 {[%clk 0:03:01]} 4. Nxe4 {[%clk 0:02:56]}  Nf6 {[%clk 0:03:02]} 5. Qe2 {[%clk 0:02:55]}  Nxe4 {[%clk 0:02:59]} 6. Qxe4 {[%clk 0:02:56]}  Qd5 {[%clk 0:03:00]} 7. Qh4 {[%clk 0:02:54]}  e5 {[%clk 0:02:48]} 8. Bc4 {[%clk 0:02:53]}  Qc5 {[%clk 0:02:37]} 9. O-O {[%clk 0:02:50]}  Be7 {[%clk 0:02:34]} 10. Qe4 {[%clk 0:02:42]}  Bd6 {[%clk 0:02:07]} 11. b4 {[%clk 0:02:24]}  Qxb4 {[%clk 0:01:54]} 12. Nxe5 {[%clk 0:02:24]}  O-O {[%clk 0:01:53]} 13. Nxf7 {[%clk 0:02:22]}  Rxf7 {[%clk 0:01:46]} 14. Qe8+ {[%clk 0:02:22]}  Bf8 {[%clk 0:01:40]} 15. Qxf7+ {[%clk 0:02:23]}  Kh8 {[%clk 0:01:38]} 16. Qg8# {[%clk 0:02:24]} 1-0


[Site "https://www.chess.com"]

[Event "Titled Tuesday Blitz December 06 Late 2022"]
[White "Xu, Grant"]
[Black "Jimenez Almeida, Luis David"]
[WhiteFideId "2052318"]
[BlackFideId "22242244"]
[WhiteElo "2186"]
[BlackElo "2158"]
[Result "1-0"]
[Round "03"]
[TimeControl "180+1"]
[Date "2022.12.07"]
[WhiteClock "0:00:29"]
[BlackClock "0:00:23"]

1. e4 {[%clk 0:03:00]}  c5 {[%clk 0:02:57]} 2. d4 {[%clk 0:03:01]}  cxd4 {[%clk 0:02:57]} 3. c3 {[%clk 0:03:01]}  d3 {[%clk 0:02:56]} 4. Bxd3 {[%clk 0:03:01]}  Nc6 {[%clk 0:02:57]} 5. c4 {[%clk 0:03:02]}  g6 {[%clk 0:02:55]} 6. Nf3 {[%clk 0:03:02]}  Bg7 {[%clk 0:02:55]} 7. O-O {[%clk 0:03:03]}  d6 {[%clk 0:02:55]} 8. h3 {[%clk 0:03:03]}  Nf6 {[%clk 0:02:55]} 9. Nc3 {[%clk 0:03:04]}  Nd7 {[%clk 0:02:55]} 10. Bd2 {[%clk 0:03:03]}  Nc5 {[%clk 0:02:54]} 11. Bc2 {[%clk 0:03:02]}  O-O {[%clk 0:02:54]} 12. Rc1 {[%clk 0:03:01]}  Bd7 {[%clk 0:02:52]} 13. b3 {[%clk 0:03:00]}  Rc8 {[%clk 0:02:48]} 14. Bb1 {[%clk 0:02:55]}  a6 {[%clk 0:02:45]} 15. Qe2 {[%clk 0:02:55]}  Ne6 {[%clk 0:02:44]} 16. Be3 {[%clk 0:02:51]}  Qa5 {[%clk 0:02:42]} 17. Nd5 {[%clk 0:02:51]}  Qa3 {[%clk 0:02:06]} 18. Qd2 {[%clk 0:02:39]}  Rfe8 {[%clk 0:02:03]} 19. Bh6 {[%clk 0:02:30]}  Bh8 {[%clk 0:02:02]} 20. Ng5 {[%clk 0:02:24]}  Ned4 {[%clk 0:01:52]} 21. f4 {[%clk 0:02:18]}  Qc5 {[%clk 0:01:39]} 22. Kh1 {[%clk 0:02:18]}  a5 {[%clk 0:01:32]} 23. f5 {[%clk 0:02:10]}  f6 {[%clk 0:01:11]} 24. fxg6 {[%clk 0:02:08]}  hxg6 {[%clk 0:01:12]} 25. e5 {[%clk 0:01:59]}  f5 {[%clk 0:01:04]} 26. e6 {[%clk 0:01:47]}  Nxe6 {[%clk 0:01:02]} 27. Nxe6 {[%clk 0:01:47]}  Bxe6 {[%clk 0:01:03]} 28. Qg5 {[%clk 0:01:47]}  Kh7 {[%clk 0:00:54]} 29. Qh4 {[%clk 0:01:45]}  Kg8 {[%clk 0:00:52]} 30. Qg5 {[%clk 0:01:15]}  Kh7 {[%clk 0:00:51]} 31. Nf4 {[%clk 0:01:15]}  Bf7 {[%clk 0:00:50]} 32. Nxg6 {[%clk 0:01:12]}  Bf6 {[%clk 0:00:43]} 33. Nf8+ {[%clk 0:00:33]}  Rxf8 {[%clk 0:00:41]} 34. Bxf5+ {[%clk 0:00:33]}  Kh8 {[%clk 0:00:39]} 35. Bg7+ {[%clk 0:00:29]}  Kg8 {[%clk 0:00:25]} 36. Bxf6+ {[%clk 0:00:29]}  Bg6 {[%clk 0:00:23]} 37. Qxg6# {[%clk 0:00:29]} 1-0


[Site "https://www.chess.com"]

[Event "Titled Tuesday Blitz December 06 Late 2022"]
[White "Zeman, Matyas"]
[Black "Aqib Javaid Butt"]
[WhiteFideId "364398"]
[BlackFideId "7801262"]
[WhiteElo "2254"]
[BlackElo "1659"]
[Result "1-0"]
[Round "03"]
[TimeControl "180+1"]
[Date "2022.12.07"]
[WhiteClock "0:00:32"]
[BlackClock "0:00:50"]

1. d4 {[%clk 0:02:54]}  d5 {[%clk 0:02:59]} 2. c4 {[%clk 0:02:51]}  c6 {[%clk 0:02:59]} 3. Nc3 {[%clk 0:02:51]}  Nf6 {[%clk 0:02:59]} 4. Nf3 {[%clk 0:02:51]}  e6 {[%clk 0:02:58]} 5. Bg5 {[%clk 0:02:51]}  Be7 {[%clk 0:02:59]} 6. e3 {[%clk 0:02:51]}  O-O {[%clk 0:02:59]} 7. Rc1 {[%clk 0:02:49]}  Nbd7 {[%clk 0:02:58]} 8. h3 {[%clk 0:02:49]}  b6 {[%clk 0:02:55]} 9. cxd5 {[%clk 0:02:48]}  exd5 {[%clk 0:02:56]} 10. Bd3 {[%clk 0:02:49]}  Bb7 {[%clk 0:02:56]} 11. O-O {[%clk 0:02:49]}  Re8 {[%clk 0:02:55]} 12. Ne5 {[%clk 0:02:49]}  Nxe5 {[%clk 0:02:47]} 13. dxe5 {[%clk 0:02:50]}  Nd7 {[%clk 0:02:47]} 14. Bxe7 {[%clk 0:02:41]}  Qxe7 {[%clk 0:02:48]} 15. f4 {[%clk 0:02:42]}  f6 {[%clk 0:02:47]} 16. exf6 {[%clk 0:01:58]}  Qxe3+ {[%clk 0:02:46]} 17. Kh1 {[%clk 0:01:58]}  Nxf6 {[%clk 0:02:46]} 18. Rf3 {[%clk 0:01:58]}  Qe7 {[%clk 0:02:29]} 19. Rg3 {[%clk 0:01:47]}  d4 {[%clk 0:02:26]} 20. Ne2 {[%clk 0:01:39]}  c5 {[%clk 0:02:16]} 21. b4 {[%clk 0:01:39]}  Ne4 {[%clk 0:02:11]} 22. Bxe4 {[%clk 0:01:37]}  Qxe4 {[%clk 0:02:12]} 23. Ng1 {[%clk 0:01:34]}  Qe7 {[%clk 0:01:48]} 24. bxc5 {[%clk 0:01:20]}  bxc5 {[%clk 0:01:48]} 25. Qh5 {[%clk 0:01:11]}  Rac8 {[%clk 0:01:31]} 26. h4 {[%clk 0:01:08]}  c4 {[%clk 0:01:29]} 27. Nh3 {[%clk 0:01:08]}  d3 {[%clk 0:01:21]} 28. f5 {[%clk 0:01:03]}  Qf7 {[%clk 0:01:17]} 29. Qg5 {[%clk 0:00:57]}  Red8 {[%clk 0:01:11]} 30. Nf4 {[%clk 0:00:46]}  d2 {[%clk 0:01:08]} 31. Rd1 {[%clk 0:00:46]}  c3 {[%clk 0:01:08]} 32. Ne6 {[%clk 0:00:46]}  c2 {[%clk 0:01:05]} 33. Nxg7 {[%clk 0:00:46]}  cxd1=Q+ {[%clk 0:01:03]} 34. Kh2 {[%clk 0:00:47]}  Qdh5 {[%clk 0:00:54]} 35. Nxh5+ {[%clk 0:00:44]}  Kh8 {[%clk 0:00:52]} 36. Qf4 {[%clk 0:00:32]}  d1=Q {[%clk 0:00:50]} 37. Qe5+ {[%clk 0:00:32]} 1-0


[Site "https://www.chess.com"]

[Event "Titled Tuesday Blitz December 06 Late 2022"]
[White "Adewumi, Tanitoluwa"]
[Black "Szyszylo, Rafal"]
[WhiteFideId "30966396"]
[BlackFideId "1109626"]
[WhiteElo "2522"]
[BlackElo "1981"]
[Result "1-0"]
[Round "04"]
[TimeControl "180+1"]
[Date "2022.12.07"]
[WhiteClock "0:00:04"]
[BlackClock "0:00:03"]

1. e4 {[%clk 0:02:57]}  d6 {[%clk 0:03:00]} 2. d4 {[%clk 0:02:30]}  Nf6 {[%clk 0:03:00]} 3. Nc3 {[%clk 0:02:30]}  g6 {[%clk 0:02:59]} 4. Nf3 {[%clk 0:02:29]}  Bg7 {[%clk 0:02:57]} 5. Bd3 {[%clk 0:02:30]}  Bg4 {[%clk 0:02:55]} 6. Be3 {[%clk 0:02:29]}  Nc6 {[%clk 0:02:52]} 7. d5 {[%clk 0:02:27]}  Ne5 {[%clk 0:02:52]} 8. Be2 {[%clk 0:02:25]}  Nxf3+ {[%clk 0:02:50]} 9. Bxf3 {[%clk 0:02:20]}  Bxf3 {[%clk 0:02:38]} 10. Qxf3 {[%clk 0:02:21]}  c6 {[%clk 0:02:37]} 11. O-O {[%clk 0:02:11]}  O-O {[%clk 0:02:35]} 12. Rad1 {[%clk 0:01:24]}  Qc7 {[%clk 0:02:27]} 13. Rfe1 {[%clk 0:01:22]}  a6 {[%clk 0:02:26]} 14. Bf4 {[%clk 0:01:16]}  Nd7 {[%clk 0:02:11]} 15. Qe2 {[%clk 0:00:19]}  Rac8 {[%clk 0:02:05]} 16. h3 {[%clk 0:00:17]}  Rfe8 {[%clk 0:02:00]} 17. dxc6 {[%clk 0:00:16]}  bxc6 {[%clk 0:02:00]} 18. Qxa6 {[%clk 0:00:15]}  Bxc3 {[%clk 0:01:47]} 19. bxc3 {[%clk 0:00:13]}  Ra8 {[%clk 0:01:47]} 20. Qc4 {[%clk 0:00:13]}  Nb6 {[%clk 0:01:21]} 21. Qb3 {[%clk 0:00:11]}  Reb8 {[%clk 0:01:11]} 22. Bg3 {[%clk 0:00:06]}  Nd5 {[%clk 0:01:02]} 23. Qc4 {[%clk 0:00:05]}  Nb6 {[%clk 0:01:01]} 24. Qd4 {[%clk 0:00:03]}  Ra4 {[%clk 0:00:56]} 25. Qe3 {[%clk 0:00:02]}  Nc4 {[%clk 0:00:54]} 26. Qh6 {[%clk 0:00:02]}  Rxa2 {[%clk 0:00:54]} 27. e5 {[%clk 0:00:02]}  dxe5 {[%clk 0:00:48]} 28. Rd4 {[%clk 0:00:02]}  Ra4 {[%clk 0:00:39]} 29. Rh4 {[%clk 0:00:02]}  e6 {[%clk 0:00:28]} 30. Qxh7+ {[%clk 0:00:02]}  Kf8 {[%clk 0:00:28]} 31. Qh8+ {[%clk 0:00:02]}  Ke7 {[%clk 0:00:29]} 32. Qh6 {[%clk 0:00:02]}  Rb5 {[%clk 0:00:15]} 33. Qg7 {[%clk 0:00:02]}  Rd5 {[%clk 0:00:15]} 34. Rh8 {[%clk 0:00:02]}  Kd6 {[%clk 0:00:11]} 35. Qf8+ {[%clk 0:00:02]}  Qe7 {[%clk 0:00:11]} 36. Qb8+ {[%clk 0:00:02]}  Qc7 {[%clk 0:00:09]} 37. Rd8+ {[%clk 0:00:02]}  Kc5 {[%clk 0:00:06]} 38. Rxd5+ {[%clk 0:00:02]}  exd5 {[%clk 0:00:05]} 39. Qxc7 {[%clk 0:00:03]}  e4 {[%clk 0:00:04]} 40. f3 {[%clk 0:00:03]}  f5 {[%clk 0:00:04]} 41. Bf2+ {[%clk 0:00:04]}  Kb5 {[%clk 0:00:03]} 42. Rb1+ {[%clk 0:00:04]}  Ka6 {[%clk 0:00:03]} 43. Qa7# {[%clk 0:00:04]} 1-0


[Site "https://www.chess.com"]

[Event "Titled Tuesday Blitz December 06 Late 2022"]
[White "Aggelis, Nikolaos"]
[Black "Shapiro, Daniel"]
[WhiteFideId "4213220"]
[BlackFideId "2001780"]
[WhiteElo "2189"]
[BlackElo "2308"]
[Result "0-1"]
[Round "04"]
[TimeControl "180+1"]
[Date "2022.12.07"]
[WhiteClock "0:00:01"]
[BlackClock "0:00:09"]

1. Nf3 {[%clk 0:02:04]}  Nf6 {[%clk 0:02:58]} 2. d4 {[%clk 0:02:05]}  b6 {[%clk 0:02:56]} 3. Nc3 {[%clk 0:02:00]}  Bb7 {[%clk 0:02:54]} 4. e4 {[%clk 0:02:00]}  Nxe4 {[%clk 0:02:50]} 5. Nxe4 {[%clk 0:01:59]}  Bxe4 {[%clk 0:02:50]} 6. Bd3 {[%clk 0:01:57]}  Bxd3 {[%clk 0:02:48]} 7. Qxd3 {[%clk 0:01:58]}  g6 {[%clk 0:02:40]} 8. O-O {[%clk 0:01:59]}  Bg7 {[%clk 0:02:40]} 9. Re1 {[%clk 0:01:59]}  O-O {[%clk 0:02:38]} 10. Bg5 {[%clk 0:02:00]}  f6 {[%clk 0:02:30]} 11. Bh4 {[%clk 0:01:55]}  e6 {[%clk 0:02:18]} 12. d5 {[%clk 0:01:49]}  g5 {[%clk 0:01:46]} 13. dxe6 {[%clk 0:01:30]}  dxe6 {[%clk 0:01:35]} 14. Qxd8 {[%clk 0:01:18]}  Rxd8 {[%clk 0:01:34]} 15. Bg3 {[%clk 0:01:19]}  e5 {[%clk 0:01:32]} 16. Rad1 {[%clk 0:01:14]}  Nd7 {[%clk 0:01:32]} 17. Nd2 {[%clk 0:01:11]}  Nf8 {[%clk 0:01:25]} 18. h4 {[%clk 0:01:08]}  h6 {[%clk 0:01:24]} 19. Nc4 {[%clk 0:00:55]}  Ne6 {[%clk 0:01:20]} 20. c3 {[%clk 0:00:51]}  Rxd1 {[%clk 0:01:14]} 21. Rxd1 {[%clk 0:00:51]}  Rd8 {[%clk 0:01:15]} 22. Rxd8+ {[%clk 0:00:51]}  Nxd8 {[%clk 0:01:15]} 23. Ne3 {[%clk 0:00:50]}  Ne6 {[%clk 0:01:12]} 24. f3 {[%clk 0:00:47]}  Bf8 {[%clk 0:01:10]} 25. Nd5 {[%clk 0:00:45]}  Kf7 {[%clk 0:01:03]} 26. Kf1 {[%clk 0:00:40]}  Bc5 {[%clk 0:01:00]} 27. b4 {[%clk 0:00:37]}  Bf8 {[%clk 0:00:57]} 28. Bf2 {[%clk 0:00:36]}  c6 {[%clk 0:00:52]} 29. Ne3 {[%clk 0:00:34]}  Nf4 {[%clk 0:00:51]} 30. g4 {[%clk 0:00:28]}  Nd5 {[%clk 0:00:44]} 31. Nxd5 {[%clk 0:00:16]}  cxd5 {[%clk 0:00:43]} 32. Ke2 {[%clk 0:00:16]}  Ke6 {[%clk 0:00:39]} 33. h5 {[%clk 0:00:16]}  d4 {[%clk 0:00:35]} 34. cxd4 {[%clk 0:00:14]}  Bxb4 {[%clk 0:00:35]} 35. dxe5 {[%clk 0:00:15]}  fxe5 {[%clk 0:00:25]} 36. Kd3 {[%clk 0:00:15]}  Bc5 {[%clk 0:00:20]} 37. Be1 {[%clk 0:00:11]}  Kd5 {[%clk 0:00:19]} 38. Bd2 {[%clk 0:00:11]}  a5 {[%clk 0:00:15]} 39. Bc1 {[%clk 0:00:11]}  b5 {[%clk 0:00:13]} 40. Bd2 {[%clk 0:00:11]}  b4 {[%clk 0:00:12]} 41. Bc1 {[%clk 0:00:11]}  a4 {[%clk 0:00:12]} 42. Bd2 {[%clk 0:00:11]}  b3 {[%clk 0:00:11]} 43. axb3 {[%clk 0:00:11]}  a3 {[%clk 0:00:08]} 44. Kc2 {[%clk 0:00:06]}  Bd4 {[%clk 0:00:08]} 45. Kb1 {[%clk 0:00:05]}  e4 {[%clk 0:00:09]} 46. fxe4+ {[%clk 0:00:04]}  Kxe4 {[%clk 0:00:09]} 47. b4 {[%clk 0:00:03]}  Kf3 {[%clk 0:00:09]} 48. b5 {[%clk 0:00:03]}  Kxg4 {[%clk 0:00:08]} 49. Ka2 {[%clk 0:00:02]}  Kxh5 {[%clk 0:00:08]} 50. Kxa3 {[%clk 0:00:01]}  Kg4 {[%clk 0:00:09]} 0-1


[Site "https://www.chess.com"]